Workbook

Sheet Cash Flow Statement
B1: CASH-FLOW STATEMENT
B3: Company Name
B5: CASH-FLOW STATEMENT
C7: For the Year Ending | D7: 2018-12-31
C8: Cash at Beginning of Year | D8: 15,700
B10: Operations
B11: Cash Receipts from
C12: Customers | D12: 693,200
C13: Other Operations
B14: Cash Paid for
C15: Inventory Purchases | D15: (264,000)
C16: General Operating and Administrative Expenses | D16: (112,000)
C17: Wage Expenses | D17: (123,000)
C18: Interest | D18: (13,500)
C19: Income Taxes | D19: (32,800)
B20: Net Cash Flow from Operations | D20: =SUM(D12:D19) -> 147,900
B22: Investing Activities
B23: Cash Receipts from
C24: Sale of Property and Equipment | D24: 33,600
C25: Collection of Principal on Loans
C26: Sale of Investment Securities
B27: Cash Paid for
C28: Purchase of Property and Equipment | D28: (75,000)
C29: Making Loans to Other Entities
C30: Purchase of Investment Securities
B31: Net Cash Flow from Investing Activities | D31: =SUM(D23:D30) -> (41,400)
B33: Financing Activities
B34: Cash Receipts from
C35: Issuance of Stock
C36: Borrowing
B37: Cash Paid for
C38: Repurchase of Stock (Treasury Stock)
C39: Repayments of Loans | D39: (34,000)
C40: Dividends | D40: (53,000)
B41: Net Cash Flow from Financing Activites | D41: =SUM(D34:D40) -> (87,000)
B43: Net Increase in Cash | D43: =D20+D31+D41 -> 19,500
C45: Cash at End of Year | D45: =D8+D43 -> 35,200
B49: CLICK HERE TO CREATE CASH-FLOW STATEMENT TEMPLATES IN SMARTSHEET

Sheet 3-Year Cash Flow
B1: ='Cash Flow Statement'!B3 -> Company Name
B3: THREE-YEAR CASH FLOW
C5: For the Year Ending | D5: 2016-12-31 | E5: 2017-12-31 | F5: 2018-12-31
C6: Cash at Beginning of Year | D6: 15,700 | E6: =D7 -> 35,200 | F6: =E7 -> 56,650
C7: Cash at End of Year | D7: =D6+D42 -> 35,200 | E7: =E6+E42 -> 56,650 | F7: =F6+F42 -> 80,245
B9: Operations | D9: 2016 | E9: 2017 | F9: 2018
B10: Cash Receipts from
C11: Customers | D11: 693,200 | E11: 762,520 | F11: 838,772
C12: Other Operations
B13: Cash Paid for
C14: Inventory Purchses | D14: (264,000) | E14: (290,400) | F14: (319,440)
C15: General Operating and Administrative Expenses | D15: (112,000) | E15: (123,200) | F15: (135,520)
C16: Wage Expenses | D16: (123,000) | E16: (135,300) | F16: (148,830)
C17: Interest | D17: (13,500) | E17: (14,850) | F17: (16,335)
C18: Income Taxes | D18: (32,800) | E18: (36,080) | F18: (39,688)
B19: Net Cash Flow from Operations | D19: =SUM(D11:D18) -> 147,900 | E19: =SUM(E11:E18) -> 162,690 | F19: 178,959
B21: Investing Activities | D21: 2016 | E21: 2017 | F21: 2018
B22: Cash Receipts from
C23: Sale of Property and Equipment | D23: 33,600 | E23: 36,960 | F23: 40,656
C24: Collection of Principal on Loans
C25: Sale of Investment Securities
B26: Cash Paid for
C27: Purchase of Property and Equipment | D27: (75,000) | E27: (82,500) | F27: (90,750)
C28: Making Loans to Other Entities
C29: Purchase of Investment Securities
B30: Net Cash Flow from Investing Activities | D30: =SUM(D22:D29) -> (41,400) | E30: =SUM(E22:E29) -> (45,540) | F30: (50,094)
B32: Financing Activities | D32: 2016 | E32: 2017 | F32: 2018
B33: Cash Receipts from
C34: Issuance of Stock
C35: Borrowing
B36: Cash Paid for
C37: Repurchase of Stock (Treasury Stock)
C38: Repayments of Loans | D38: (34,000) | E38: (37,400) | F38: (41,140)
C39: Dividends | D39: (53,000) | E39: (58,300) | F39: (64,130)
B40: Net Cash Flow from Financing Activites | D40: =SUM(D33:D39) -> (87,000) | E40: =SUM(E33:E39) -> (95,700) | F40: (105,270)
B42: Net Increase in Cash | D42: =D19+D30+D40 -> 19,500 | E42: =E19+E30+E40 -> 21,450 | F42: 23,595

Sheet 12-Month Cash Flow
B1: ='Cash Flow Statement'!B3 -> Company Name
B3: 12-MONTH CASH FLOW
C5: Period Beginning | D5: 2018-01-01 | E5: 2018-02-01 | F5: 2018-03-01 | G5: 2018-04-01 | H5: 2018-05-01 | I5: 2018-06-01 | J5: 2018-07-01 | K5: 2018-08-01 | L5: 2018-09-01 | M5: 2018-10-01 | N5: 2018-11-01 | O5: 2018-12-01
C6: Period Ending | D6: 2018-01-31 | E6: 2019-02-28 | F6: 2018-03-31 | G6: 2018-04-30 | H6: 2018-05-31 | I6: 2018-06-30 | J6: 2018-07-31 | K6: 2018-08-31 | L6: 2018-09-30 | M6: 2018-10-31 | N6: 2018-11-30 | O6: 2018-12-31
C8: Cash at Beginning of Period | D8: 15,700 | E8: =D10 -> 17,326 | F8: =E10 -> 17,326 | G8: =F10 -> 17,326 | H8: =G10 -> 17,326 | I8: 17,326 | J8: 17,326 | K8: 17,326 | L8: 17,326 | M8: 17,326 | N8: 17,326 | O8: 17,326
C10: Cash at End of Period | D10: =D8+D45 -> 17,326 | E10: =E8+E45 -> 17,326 | F10: =F8+F45 -> 17,326 | G10: =G8+G45 -> 17,326 | H10: 17,326 | I10: 17,326 | J10: 17,326 | K10: 17,326 | L10: 17,326 | M10: 17,326 | N10: 17,326 | O10: 17,326
B12: Operations | D12: JAN | E12: FEB | F12: MAR | G12: APR | H12: MAY | I12: JUN | J12: JUL | K12: AUG | L12: SEP | M12: OCT | N12: NOV | O12: DEC
B13: Cash Receipts from
C14: Customers | D14: 57,767
C15: Other Operations
B16: Cash Paid for
C17: Inventory Purchases | D17: (22,000)
C18: General Operating and Administrative Expenses | D18: (9,333)
C19: Wage Expenses | D19: (10,250)
C20: Interest | D20: (1,125)
C21: Income Taxes | D21: (2,733)
B22: Net Cash Flow From Operations | D22: =SUM(D14:D21) -> 12,326 | E22: =SUM(E14:E21) -> 0 | F22: 0 | G22: =SUM(G14:G21) -> 0 | H22: =SUM(H14:H21) -> 0 | I22: =SUM(I14:I21) -> 0 | J22: =SUM(J14:J21) -> 0 | K22: =SUM(K14:K21) -> 0 | L22: =SUM(L14:L21) -> 0 | M22: =SUM(M14:M21) -> 0 | N22: =SUM(N14:N21) -> 0 | O22: =SUM(O14:O21) -> 0
B24: Investing Activities | D24: JAN | E24: FEB | F24: MAR | G24: APR | H24: MAY | I24: JUN | J24: JUL | K24: AUG | L24: SEP | M24: OCT | N24: NOV | O24: DEC
B25: Cash Receipts from
C26: Sale of Property and Equipment | D26: 2,800
C27: Collection of Principal on Loans
C28: Sale of Investment Securities
B29: Cash Paid for
C30: Purchase of Property and Equipment | D30: (6,250)
C31: Making Loans to Other Entities
C32: Purchase of Investment Securities
B33: Net Cash Flow from Investing Activities | D33: =SUM(D26:D32) -> (3,450) | E33: =SUM(E26:E32) -> 0 | F33: 0 | G33: 0 | H33: 0 | I33: 0 | J33: 0 | K33: 0 | L33: 0 | M33: 0 | N33: 0 | O33: 0
B35: Financing Activities | D35: JAN | E35: FEB | F35: MAR | G35: APR | H35: MAY | I35: JUN | J35: JUL | K35: AUG | L35: SEP | M35: OCT | N35: NOV | O35: DEC
B36: Cash Receipts from
C37: Issuance of Stock
C38: Borrowing
B39: Cash Paid for
C40: Repurchase of Stock (Treasury Stock)
C41: Repayments of Loans | D41: (2,833)
C42: Dividends | D42: (4,417)
B43: Net Cash Flow from Financing Activites | D43: =SUM(D37:D42) -> (7,250) | E43: =SUM(E37:E42) -> 0 | F43: 0 | G43: 0 | H43: 0 | I43: 0 | J43: 0 | K43: 0 | L43: 0 | M43: 0 | N43: 0 | O43: 0
B45: Net Increase in Cash | D45: =D22+D33+D43 -> 1,626 | E45: =E22+E33+E43 -> 0 | F45: 0 | G45: 0 | H45: 0 | I45: =I22+I33+I43 -> 0 | J45: 0 | K45: 0 | L45: 0 | M45: 0 | N45: 0 | O45: 0
